[Event "26th Abu Dhabi Master 2019"]
[Site "Abu Dhabi"]
[Date "2019.08.02"]
[Round "1.68"]
[White "Panesar Vedant"]
[Black "Ni, Shiqun"]
[Result "0-1"]
[ECO "D90"]
[WhiteElo "2092"]
[BlackElo "2407"]
[Annotator "NA"]
[PlyCount "96"]
[EventDate "2019.08.02"]
[EventType "swiss"]
[EventCountry "UAE"]
[SourceTitle "playchess.com"]
[Source "ChessBase"]
[SourceQuality "1"]
[TimeControl "5400+30"]

1. d4 {[%emt 0:00:00]} Nf6 {[%emt 0:00:00]} 2. c4 {[%emt 0:00:00]} g6 {[%emt 0:00:54]} 3. Nc3 {[%emt 0:00:00]} d5 {[%emt 0:00:05]} 4. Nf3 {[%emt 0:00:00]} Bg7 {[%emt 0:00:07]} 5. h4 {[%emt 0:00:05]} c6 {[%emt 0:00:46]} 6. Bg5 {[%emt 0:00:46]} dxc4 {[%emt 0:03:17]} 7. e4 {[%emt 0:01:31]} Be6 {[%emt 0:03:24]} 8. e5 {[%emt 0:06:31]} Nd5 {[%emt 0:03:09]} 9. Be2 {[%emt 0:17:22]} Nd7 {[%emt 0:04:16]} 10. h5 {[%emt 0:01:21]} f6 {[%emt 0:18:25]} 11. exf6 {[%emt 0:02:37]} exf6 {[%emt 0:00:34]} 12. Bd2 {[%emt 0:00:09]} Qe7 {[%emt 0:05:25]} 13. O-O {[%emt 0:02:11]} Nxc3 {[%emt 0:12:16]} 14. bxc3 {[%emt 0:01:16]} Qf7 {[%emt 0:00:30]} 15. h6 {[%emt 0:03:57]} Bf8 {[%emt 0:00:05]} 16. Re1 {[%emt 0:00:08]} O-O-O {[%emt 0:09:08]} 17. Qa4 {[%emt 0:08:54]} Kb8 {[%emt 0:00:15]} 18. Bf4+ {[%emt 0:00:29]} Ka8 {[%emt 0:00:01]} 19. Rab1 {[%emt 0:00:18]} b5 {[%emt 0:09:24]} 20. Rxb5 {[%emt 0:13:06]} cxb5 {[%emt 0:01:35]} 21. Qxb5 {[%emt 0:00:02]} Bd5 {[%emt 0:03:59]} 22. Bc7 {[%emt 0:06:20]} Rb8 {[%emt 0:00:15]} 23. Bxb8 {[%emt 0:02:09]} Nxb8 {[%emt 0:00:03]} 24. Nd2 {[%emt 0:03:16]} Bxh6 {[%emt 0:01:15]} 25. Nxc4 {[%emt 0:01:16]} Bf4 {[%emt 0:03:34]} 26. g3 {[%emt 0:07:03]} Bc7 {[%emt 0:02:05]} 27. Ne3 {[%emt 0:08:07]} Bc6 {[%emt 0:00:07]} 28. Qd3 {[%emt 0:00:02]} f5 {[%emt 0:04:59]} 29. d5 {[%emt 0:00:50]} Bb7 {[%emt 0:01:38]} 30. d6 {[%emt 0:01:17]} Bb6 {[%emt 0:04:28]} 31. Nc4 {[%emt 0:00:55]} Qd5 {[%emt 0:03:10]} 32. Qxd5 {[%emt 0:00:02]} Bxd5 {[%emt 0:00:01]} 33. Rd1 {[%emt 0:00:55]} Bxc4 {[%emt 0:01:10]} 34. Bxc4 {[%emt 0:00:01]} Kb7 {[%emt 0:00:09]} 35. Bd5+ {[%emt 0:00:26]} Kc8 {[%emt 0:00:02]} 36. a4 {[%emt 0:02:11]} Re8 {[%emt 0:01:59]} 37. Kf1 {[%emt 0:00:06]} Kd7 {[%emt 0:00:20]} 38. Bc4 {[%emt 0:00:24]} Nc6 {[%emt 0:01:32]} 39. Bf7 {[%emt 0:05:59]} Rf8 {[%emt 0:00:08]} 40. Bb3 {[%emt 0:00:22]} Rf6 {[%emt 0:00:07]} 41. Bg8 {[%emt 0:00:24]} Rxd6 {[%emt 0:02:13]} 42. Rxd6+ {[%emt 0:00:02]} Kxd6 {[%emt 0:00:01]} 43. Bxh7 {[%emt 0:00:01]} Ne7 {[%emt 0:00:02]} 44. f4 {[%emt 0:01:08]} Kd5 {[%emt 0:01:22]} 45. Ke2 {[%emt 0:00:30]} Ke4 {[%emt 0:00:28]} 46. c4 {[%emt 0:00:15]} a5 {[%emt 0:00:20]} 47. Kd2 {[%emt 0:01:49]} Kf3 {[%emt 0:00:14]} 48. Kd3 {[%emt 0:00:12]} Bc5 {[%emt 0:00:38] Kd4} 0-1

[Event "26th Abu Dhabi Master 2019"]
[Site "Abu Dhabi"]
[Date "2019.08.02"]
[Round "1.69"]
[White "Agmanov, Zhandos"]
[Black "Srihari L"]
[Result "1-0"]
[ECO "B50"]
[WhiteElo "2402"]
[BlackElo "2101"]
[Annotator "NA"]
[PlyCount "95"]
[EventDate "2019.08.02"]
[EventType "swiss"]
[EventCountry "UAE"]
[SourceTitle "playchess.com"]
[Source "ChessBase"]
[SourceQuality "1"]
[TimeControl "5400+30"]

1. e4 {[%emt 0:00:00]} c5 {[%emt 0:00:57]} 2. Nf3 {[%emt 0:00:00]} d6 {[%emt 0:00:21]} 3. d4 {[%emt 0:00:09]} Nf6 {[%emt 0:00:17]} 4. dxc5 {[%emt 0:00:31]} Nxe4 {[%emt 0:00:17]} 5. cxd6 {[%emt 0:00:07]} Nxd6 {[%emt 0:00:06]} 6. Bf4 {[%emt 0:00:24]} Nc6 {[%emt 0:01:03]} 7. Nc3 {[%emt 0:01:12]} g6 {[%emt 0:05:26]} 8. Nb5 {[%emt 0:01:22]} Nxb5 {[%emt 0:06:29]} 9. Qxd8+ {[%emt 0:00:07]} Nxd8 {[%emt 0:00:07]} 10. Bxb5+ {[%emt 0:00:06]} Bd7 {[%emt 0:00:13]} 11. Bxd7+ {[%emt 0:07:12]} Kxd7 {[%emt 0:00:06]} 12. O-O-O+ {[%emt 0:00:47]} Ke8 {[%emt 0:00:48]} 13. Nd4 {[%emt 0:29:36]} Bg7 {[%emt 0:02:28]} 14. Nb5 {[%emt 0:00:56]} Ne6 {[%emt 0:02:42]} 15. Rhe1 {[%emt 0:05:26]} Kf8 {[%emt 0:14:23]} 16. Nc7 {[%emt 0:14:01]} Nxc7 {[%emt 0:00:41]} 17. Bxc7 {[%emt 0:00:02]} Ke8 {[%emt 0:03:49]} 18. Rd3 {[%emt 0:00:44]} Bf6 {[%emt 0:19:32]} 19. Red1 {[%emt 0:04:54]} Kf8 {[%emt 0:01:57]} 20. Rd7 {[%emt 0:01:30]} Kg7 {[%emt 0:00:22]} 21. a4 {[%emt 0:03:25]} b6 {[%emt 0:05:57]} 22. c3 {[%emt 0:01:10]} Rhc8 {[%emt 0:01:35]} 23. Kc2 {[%emt 0:02:14]} Re8 {[%emt 0:05:44]} 24. Bg3 {[%emt 0:02:56]} Rec8 {[%emt 0:02:46]} 25. Rb7 {[%emt 0:01:58]} Rc6 {[%emt 0:00:19]} 26. Rdd7 {[%emt 0:00:32]} a6 {[%emt 0:00:51]} 27. Bc7 {[%emt 0:00:50]} b5 {[%emt 0:00:48]} 28. axb5 {[%emt 0:06:29]} axb5 {[%emt 0:00:26]} 29. Bf4 {[%emt 0:09:23]} Ra4 {[%emt 0:03:07]} 30. Be3 {[%emt 0:00:47]} Rg4 {[%emt 0:02:17]} 31. g3 {[%emt 0:01:35]} b4 {[%emt 0:04:36]} 32. Rdc7 {[%emt 0:01:18]} Rxc7 {[%emt 0:03:25]} 33. Rxc7 {[%emt 0:00:01]} bxc3 {[%emt 0:00:08]} 34. bxc3 {[%emt 0:00:01]} Ra4 {[%emt 0:00:18]} 35. c4 {[%emt 0:00:54]} Ra8 {[%emt 0:01:42]} 36. c5 {[%emt 0:00:05]} Kf8 {[%emt 0:00:14]} 37. Kb3 {[%emt 0:00:40]} Ke8 {[%emt 0:00:06]} 38. Kc4 {[%emt 0:00:04]} Kd8 {[%emt 0:00:48]} 39. Rb7 {[%emt 0:00:04]} Be5 {[%emt 0:01:42]} 40. c6 {[%emt 0:01:05]} Bc7 {[%emt 0:00:11]} 41. Ba7 {[%emt 0:00:05]} Rc8 {[%emt 0:01:41]} 42. Kb5 {[%emt 0:00:21]} Bd6 {[%emt 0:01:16]} 43. Rd7+ {[%emt 0:00:20]} Ke8 {[%emt 0:00:10]} 44. Kb6 {[%emt 0:00:13]} Rd8 {[%emt 0:02:14]} 45. Rxd8+ {[%emt 0:00:07]} Kxd8 {[%emt 0:00:03]} 46. Kb7 {[%emt 0:00:21]} Bc7 {[%emt 0:00:13]} 47. Bc5 {[%emt 0:00:13]} Ba5 {[%emt 0:00:07]} 48. Bb4 {[%emt 0:00:05]} 1-0

[Event "26th Abu Dhabi Master 2019"]
[Site "Abu Dhabi"]
[Date "2019.08.02"]
[Round "1.71"]
[White "Ammar, Sedrani"]
[Black "Sharma Isha"]
[Result "1-0"]
[ECO "B07"]
[WhiteElo "2024"]
[BlackElo "2188"]
[Annotator "NA"]
[PlyCount "101"]
[EventDate "2019.08.02"]
[EventType "swiss"]
[EventCountry "UAE"]
[SourceTitle "playchess.com"]
[Source "ChessBase"]
[SourceQuality "1"]
[TimeControl "5400+30"]

1. d4 {[%emt 0:14:36]} d6 {[%emt 0:14:55]} 2. e4 {[%emt 0:00:12]} Nf6 {[%emt 0:00:06]} 3. Nc3 {[%emt 0:00:04]} e5 {[%emt 0:00:07]} 4. dxe5 {[%emt 0:00:43]} dxe5 {[%emt 0:00:05]} 5. Qxd8+ {[%emt 0:00:38]} Kxd8 {[%emt 0:00:05]} 6. Bc4 {[%emt 0:00:38]} Ke8 {[%emt 0:00:07]} 7. f3 {[%emt 0:02:16]} c6 {[%emt 0:01:37]} 8. Be3 {[%emt 0:00:58]} b5 {[%emt 0:01:16]} 9. Bb3 {[%emt 0:00:25]} a5 {[%emt 0:00:12]} 10. a4 {[%emt 0:02:20]} b4 {[%emt 0:00:26]} 11. Nb1 {[%emt 0:02:55]} Nfd7 {[%emt 0:16:25]} 12. Nd2 {[%emt 0:01:00]} Bd6 {[%emt 0:00:07]} 13. Ne2 {[%emt 0:00:32]} Na6 {[%emt 0:02:11]} 14. Nc1 {[%emt 0:12:15]} Bc5 {[%emt 0:10:22]} 15. Ke2 {[%emt 0:03:17]} Nb6 {[%emt 0:04:28]} 16. Nd3 {[%emt 0:00:50]} Bxe3 {[%emt 0:01:06]} 17. Kxe3 {[%emt 0:01:27]} f6 {[%emt 0:00:07]} 18. Nc4 {[%emt 0:00:45]} Nxc4+ {[%emt 0:00:14]} 19. Bxc4 {[%emt 0:00:03]} Nc7 {[%emt 0:02:57]} 20. Nc5 {[%emt 0:04:40]} Ke7 {[%emt 0:00:06]} 21. Rad1 {[%emt 0:00:21]} Rd8 {[%emt 0:00:40]} 22. Rxd8 {[%emt 0:00:22]} Kxd8 {[%emt 0:00:04]} 23. g3 {[%emt 0:09:27]} Ne8 {[%emt 0:03:40]} 24. f4 {[%emt 0:04:46]} exf4+ {[%emt 0:01:15]} 25. gxf4 {[%emt 0:00:02]} Ke7 {[%emt 0:00:03]} 26. e5 {[%emt 0:02:32]} Bf5 {[%emt 0:05:34]} 27. Rd1 {[%emt 0:02:36]} Ra7 {[%emt 0:00:28]} 28. Bb3 {[%emt 0:09:07]} g5 {[%emt 0:14:54]} 29. Re1 {[%emt 0:03:38]} Bg6 {[%emt 0:03:44]} 30. h4 {[%emt 0:02:46]} h6 {[%emt 0:04:59]} 31. exf6+ {[%emt 0:02:11]} Kxf6 {[%emt 0:00:54]} 32. fxg5+ {[%emt 0:00:02]} hxg5 {[%emt 0:00:07]} 33. Rf1+ {[%emt 0:00:05]} Ke5 {[%emt 0:02:17]} 34. Rg1 {[%emt 0:01:46]} g4 {[%emt 0:02:59]} 35. Rxg4 {[%emt 0:00:17]} Bf5 {[%emt 0:00:06]} 36. Nd3+ {[%emt 0:04:20]} Kf6 {[%emt 0:01:06]} 37. Rc4 {[%emt 0:00:03]} Re7+ {[%emt 0:00:56]} 38. Kd2 {[%emt 0:00:14]} Be4 {[%emt 0:00:15]} 39. Rc5 {[%emt 0:00:20]} Ra7 {[%emt 0:00:37]} 40. Re5 {[%emt 0:00:10]} Bxd3 {[%emt 0:00:58]} 41. Re6+ {[%emt 0:00:28]} Kf5 {[%emt 0:01:52]} 42. cxd3 {[%emt 0:00:03]} Ng7 {[%emt 0:00:33]} 43. Rxc6 {[%emt 0:00:03]} Kg4 {[%emt 0:00:57]} 44. Rh6 {[%emt 0:00:48]} Re7 {[%emt 0:00:44]} 45. Ra6 {[%emt 0:00:30]} Nf5 {[%emt 0:01:10]} 46. Be6 {[%emt 0:00:18]} Kf4 {[%emt 0:00:31]} 47. Bxf5 {[%emt 0:00:07]} Kxf5 {[%emt 0:00:03]} 48. Rxa5+ {[%emt 0:00:01]} Kg4 {[%emt 0:00:05]} 49. h5 {[%emt 0:00:20]} Kf3 {[%emt 0:00:05]} 50. Rf5+ {[%emt 0:00:06]} Kg4 {[%emt 0:00:02]} 51. Rb5 {[%emt 0:00:01]} 1-0

[Event "26th Abu Dhabi Master 2019"]
[Site "Abu Dhabi"]
[Date "2019.08.02"]
[Round "1.72"]
[White "Thrish Karthik"]
[Black "Soumya, Swaminathan"]
[Result "0-1"]
[ECO "A37"]
[WhiteElo "2075"]
[BlackElo "2402"]
[Annotator "NA"]
[PlyCount "82"]
[EventDate "2019.08.02"]
[EventType "swiss"]
[EventCountry "UAE"]
[SourceTitle "playchess.com"]
[Source "ChessBase"]
[SourceQuality "1"]
[TimeControl "5400+30"]

1. Nf3 {[%emt 0:00:00]} c5 {[%emt 0:00:00]} 2. c4 {[%emt 0:00:14]} Nc6 {[%emt 0:00:30]} 3. Nc3 {[%emt 0:01:53]} g6 {[%emt 0:00:44]} 4. g3 {[%emt 0:02:58]} Bg7 {[%emt 0:00:07]} 5. Bg2 {[%emt 0:00:19]} e6 {[%emt 0:00:04]} 6. O-O {[%emt 0:01:55]} Nge7 {[%emt 0:00:11]} 7. d3 {[%emt 0:03:03]} d5 {[%emt 0:00:34]} 8. cxd5 {[%emt 0:09:27]} exd5 {[%emt 0:02:11]} 9. Bg5 {[%emt 0:01:41]} Be6 {[%emt 0:16:35]} 10. e4 {[%emt 0:14:27]} Qd7 {[%emt 0:06:21]} 11. Re1 {[%emt 0:10:17]} O-O {[%emt 0:01:36]} 12. Bxe7 {[%emt 0:07:13]} Nxe7 {[%emt 0:00:07]} 13. e5 {[%emt 0:00:10]} h6 {[%emt 0:25:23]} 14. d4 {[%emt 0:06:05]} b6 {[%emt 0:02:59]} 15. Qd2 {[%emt 0:03:29]} Rac8 {[%emt 0:04:24]} 16. Ne2 {[%emt 0:06:31]} Bg4 {[%emt 0:15:54]} 17. Nf4 {[%emt 0:07:49]} g5 {[%emt 0:00:09]} 18. Ne2 {[%emt 0:03:49]} Nc6 {[%emt 0:04:18]} 19. Rad1 {[%emt 0:05:05]} Bxf3 {[%emt 0:04:59]} 20. Bxf3 {[%emt 0:00:03]} cxd4 {[%emt 0:00:11]} 21. Nxd4 {[%emt 0:00:32]} Nxe5 {[%emt 0:00:03]} 22. Bg2 {[%emt 0:02:37]} Nc4 {[%emt 0:00:07]} 23. Qb4 {[%emt 0:02:16]} Rfe8 {[%emt 0:02:07]} 24. Rxe8+ {[%emt 0:03:56]} Rxe8 {[%emt 0:00:12]} 25. b3 {[%emt 0:04:48]} Nb2 {[%emt 0:00:32]} 26. Rb1 {[%emt 0:00:31]} Nd3 {[%emt 0:01:44]} 27. Qb5 {[%emt 0:01:19]} Qxb5 {[%emt 0:03:36]} 28. Nxb5 {[%emt 0:00:01]} Re2 {[%emt 0:00:08]} 29. Bxd5 {[%emt 0:01:23]} Rxa2 {[%emt 0:01:33]} 30. Nd6 {[%emt 0:00:36]} Nxf2 {[%emt 0:02:27]} 31. Bxf7+ {[%emt 0:00:25]} Kf8 {[%emt 0:01:10]} 32. b4 {[%emt 0:00:35]} Rd2 {[%emt 0:00:16]} 33. Nc4 {[%emt 0:00:28]} Rd4 {[%emt 0:01:10]} 34. Be6 {[%emt 0:00:32]} Nd1 {[%emt 0:00:46]} 35. Na3 {[%emt 0:00:30]} Rd2 {[%emt 0:00:42]} 36. Nc4 {[%emt 0:00:30]} Bd4+ {[%emt 0:01:58]} 37. Kh1 {[%emt 0:00:31]} Nf2+ {[%emt 0:00:26]} 38. Kg2 {[%emt 0:00:28]} Re2 {[%emt 0:00:11]} 39. Bd5 {[%emt 0:00:22]} Nd1+ {[%emt 0:01:44]} 40. Kh1 {[%emt 0:00:38]} Re1+ {[%emt 0:00:24]} 41. Kg2 {[%emt 0:00:30]} Ne3+ {[%emt 0:00:48]} 0-1

[Event "26th Abu Dhabi Master 2019"]
[Site "Abu Dhabi"]
[Date "2019.08.02"]
[Round "1.73"]
[White "Rakesh Kumar Jena"]
[Black "Salonika, Saina"]
[Result "1/2-1/2"]
[ECO "A48"]
[WhiteElo "2395"]
[BlackElo "2127"]
[Annotator "NA"]
[PlyCount "56"]
[EventDate "2019.08.02"]
[EventType "swiss"]
[EventCountry "UAE"]
[SourceTitle "playchess.com"]
[Source "ChessBase"]
[SourceQuality "1"]
[TimeControl "5400+30"]

1. d4 Nf6 2. Nf3 g6 3. Nc3 d5 4. Bf4 Bg7 5. e3 O-O 6. Be2 c6 7. h3 Nbd7 8. g4 b6 9. g5 Ne4 10. Nxe4 dxe4 11. Nd2 e5 12. dxe5 Qe7 13. Nxe4 Qb4+ 14. Nd2 Qxb2 15. Rb1 Qc3 16. e6 Nc5 17. Bd6 Bxe6 18. Bxf8 Rxf8 19. Rc1 Rd8 20. Bd3 Qa5 21. Qe2 Bc3 22. Rd1 Na4 23. Qf3 Nb2 24. Ke2 Nxd1 25. Rxd1 Bxd2 26. Rxd2 c5 27. Qf6 b5 28. Rd1 c4 1/2-1/2

[Event "26th Abu Dhabi Master 2019"]
[Site "Abu Dhabi"]
[Date "2019.08.02"]
[Round "1.74"]
[White "Soham Kamotra"]
[Black "Assaubayeva, Bibisara"]
[Result "1-0"]
[ECO "A05"]
[WhiteElo "2136"]
[BlackElo "2375"]
[Annotator "NA"]
[PlyCount "77"]
[EventDate "2019.08.02"]
[EventType "swiss"]
[EventCountry "UAE"]
[SourceTitle "playchess.com"]
[Source "ChessBase"]
[SourceQuality "1"]
[TimeControl "5400+30"]

1. Nf3 Nf6 2. c4 g6 3. g3 c5 4. Bg2 Bg7 5. d4 cxd4 6. Nxd4 O-O 7. Nc3 Nc6 8. O-O Nxd4 9. Qxd4 d6 10. Qd3 a6 11. Rd1 Bf5 12. e4 Bg4 13. f3 Be6 14. Be3 Qa5 15. Rac1 Rfc8 16. b3 Nd7 17. Nd5 Bxd5 18. Qxd5 Qxd5 19. Rxd5 Rc7 20. Bh3 Nf6 21. Rdd1 Ne8 22. c5 Bb2 23. Rc4 Ba3 24. cxd6 exd6 25. Rxc7 Nxc7 26. Bc1 Bc5+ 27. Kf1 b5 28. a3 a5 29. Ke2 Kf8 30. Bb2 Ke7 31. e5 d5 32. Rc1 Na6 33. f4 Ra7 {[%emt 1:27:27]} 34. Bc8 {[%emt 1:29:35]} Bb6 {[%emt 0:01:34]} 35. Bxa6 {[%emt 0:01:15]} Rxa6 {[%emt 0:00:01]} 36. Rc6 {[%emt 0:00:03]} a4 {[%emt 0:06:49]} 37. bxa4 {[%emt 0:00:29]} bxa4 {[%emt 0:01:29]} 38. Bd4 {[%emt 0:00:14]} Bxd4 {[%emt 0:02:00]} 39. Rxa6 {[%emt 0:00:03]} 1-0

[Event "26th Abu Dhabi Master 2019"]
[Site "Abu Dhabi"]
[Date "2019.08.02"]
[Round "1.74"]
[White "Soham Kamotra"]
[Black "Assaubayeva, Bibisara"]
[Result "*"]
[ECO "E21"]
[WhiteElo "2136"]
[BlackElo "2375"]
[Annotator "NA"]
[PlyCount "31"]
[EventDate "2019.08.02"]
[EventType "swiss"]
[EventCountry "UAE"]
[SourceTitle "playchess.com"]
[Source "ChessBase"]
[SourceQuality "1"]
[TimeControl "5400+30"]

1. c4 Nf6 {[%emt 0:00:03]} 2. d4 {[%emt 0:01:38]} e6 {[%emt 0:00:09]} 3. Nc3 {[%emt 0:00:32]} Bb4 {[%emt 0:00:15]} 4. Nf3 {[%emt 0:00:44]} O-O {[%emt 0:00:23]} 5. Qc2 {[%emt 0:01:19]} d5 {[%emt 0:01:30]} 6. a3 {[%emt 0:00:13]} Bxc3+ {[%emt 0:00:47]} 7. Qxc3 {[%emt 0:00:03]} dxc4 {[%emt 0:02:25]} 8. Qxc4 {[%emt 0:00:06]} b6 {[%emt 0:00:53]} 9. Bg5 {[%emt 0:00:05]} Ba6 {[%emt 0:03:26]} 10. Qa4 {[%emt 0:00:05]} h6 {[%emt 0:02:37]} 11. Bh4 {[%emt 0:00:12]} Bb7 {[%emt 0:01:48]} 12. e3 {[%emt 0:02:03]} Qd7 {[%emt 0:16:13]} 13. Bb5 {[%emt 0:07:18]} c6 {[%emt 0:02:17]} 14. Be2 {[%emt 0:00:07]} c5 {[%emt 0:01:01]} 15. Qd1 {[%emt 0:06:21]} cxd4 {[%emt 0:06:04]} 16. Qxd4 {[%emt 0:03:26]} *

[Event "26th Abu Dhabi Master 2019"]
[Site "Abu Dhabi"]
[Date "2019.08.02"]
[Round "1.75"]
[White "Manush Shah"]
[Black "Tarini Goyal"]
[Result "1/2-1/2"]
[ECO "A46"]
[WhiteElo "2373"]
[BlackElo "2038"]
[Annotator "NA"]
[PlyCount "71"]
[EventDate "2019.08.02"]
[EventType "swiss"]
[EventCountry "UAE"]
[SourceTitle "playchess.com"]
[Source "ChessBase"]
[SourceQuality "1"]
[TimeControl "5400+30"]

1. d4 Nf6 2. Nf3 d5 3. c4 e6 4. e3 b6 5. cxd5 exd5 6. Nc3 Bb7 7. Bd3 Bd6 8. O-O O-O 9. Qc2 c5 10. b3 Nc6 11. a3 cxd4 12. exd4 Re8 13. Bg5 h6 14. Bxf6 Qxf6 15. Nxd5 Qd8 16. Nc3 Rc8 17. Bf5 Rc7 18. Qd3 Ne7 19. Nb5 Ba6 20. Rfe1 g6 21. Bh3 Rf8 22. a4 Nd5 23. Qe4 Bxb5 24. axb5 Nf4 25. Ne5 Bxe5 26. dxe5 Nxh3+ 27. gxh3 Re8 28. Rad1 Qg5+ 29. Kh1 Rc5 30. Rd5 Rxd5 31. Qxd5 Qf5 32. Kg2 Qg5+ 33. Kf1 Qf5 34. Re3 Rc8 35. Qf3 Qxf3 36. Rxf3 1/2-1/2

[Event "26th Abu Dhabi Master 2019"]
[Site "Abu Dhabi"]
[Date "2019.08.03"]
[Round "2.4"]
[White "Sadhwani, Raunak"]
[Black "Esipenko, Andrey"]
[Result "1/2-1/2"]
[ECO "C68"]
[WhiteElo "2477"]
[BlackElo "2621"]
[Annotator "ChessBase"]
[PlyCount "114"]
[EventDate "2019.08.02"]
[EventType "swiss"]
[EventCountry "UAE"]
[SourceTitle "playchess.com"]
[Source "ChessBase"]
[SourceQuality "1"]
[TimeControl "5400+30"]

1. e4 {[%emt 0:00:00]} e5 {[%emt 0:00:00]} 2. Nf3 {[%emt 0:00:00]} Nc6 {[%emt 0:00:00]} 3. Bb5 {[%emt 0:00:00]} a6 {[%emt 0:00:03]} 4. Bxc6 {[%emt 0:00:00]} dxc6 {[%emt 0:00:08]} 5. O-O {[%emt 0:00:00]} Qf6 {[%emt 0:03:32]} 6. d4 {[%emt 0:00:01]} exd4 {[%emt 0:00:20]} 7. Bg5 {[%emt 0:00:08]} Qd6 {[%emt 0:00:14]} 8. Nxd4 {[%emt 0:00:08]} Be7 {[%emt 0:02:02]} 9. Be3 {[%emt 0:00:59]} Bd7 {[%emt 0:11:19]} 10. Qe2 {[%emt 0:15:03]} O-O-O {[%emt 0:06:09]} 11. Nd2 {[%emt 0:03:46]} Qg6 {[%emt 0:03:36]} 12. f3 {[%emt 0:08:42]} f5 {[%emt 0:06:41]} 13. exf5 {[%emt 0:06:16]} Bxf5 {[%emt 0:00:06]} 14. Nc4 {[%emt 0:00:18]} Qf6 {[%emt 0:17:31]} 15. Rad1 {[%emt 0:05:16]} Bd7 {[%emt 0:01:15]} 16. Nb3 {[%emt 0:02:53]} Qe6 {[%emt 0:05:21]} 17. Rfe1 {[%emt 0:05:16]} Nf6 {[%emt 0:03:27]} 18. Nca5 {[%emt 0:19:16]} Qf5 {[%emt 0:02:08]} 19. g4 {[%emt 0:03:26]} Qb5 {[%emt 0:05:19]} 20. c4 {[%emt 0:01:53]} Qa4 {[%emt 0:03:56]} 21. Qc2 {[%emt 0:12:23]} b6 {[%emt 0:09:52]} 22. Nb7 {[%emt 0:02:02]} Rde8 {[%emt 0:02:04]} 23. g5 {[%emt 0:01:16]} c5 {[%emt 0:06:50]} 24. gxf6 {[%emt 0:00:47]} gxf6 {[%emt 0:02:01]} 25. N7xc5 {[%emt 0:02:55]} bxc5 {[%emt 0:01:03]} 26. Qe4 {[%emt 0:02:05]} Bc6 {[%emt 0:00:49]} 27. Qf5+ {[%emt 0:01:06]} Kb8 {[%emt 0:00:28]} 28. Bf4 {[%emt 0:05:49]} Qxa2 {[%emt 0:04:48]} 29. Re3 {[%emt 0:01:37]} Bd6 {[%emt 0:01:25]} 30. Rxe8+ {[%emt 0:01:01]} Rxe8 {[%emt 0:00:16]} 31. Nxc5 {[%emt 0:00:29]} Rg8+ {[%emt 0:00:09]} 32. Kf2 {[%emt 0:00:30]} Qxb2+ {[%emt 0:01:26]} 33. Rd2 {[%emt 0:00:01]} Qa1 {[%emt 0:00:11]} 34. Bg3 {[%emt 0:00:29]} Qc3 {[%emt 0:01:27]} 35. Nxa6+ {[%emt 0:00:35]} Kb7 {[%emt 0:00:06]} 36. Rxd6 {[%emt 0:01:03]} cxd6 {[%emt 0:01:23]} 37. Qxh7+ {[%emt 0:00:01]} Kxa6 {[%emt 0:00:06]} 38. Qxg8 {[%emt 0:00:03]} Qd2+ {[%emt 0:00:49]} 39. Kf1 {[%emt 0:00:42]} Qd1+ {[%emt 0:00:21]} 40. Kf2 {[%emt 0:00:01]} Qxf3+ {[%emt 0:00:15]} 41. Ke1 {[%emt 0:00:01]} Qe3+ {[%emt 0:00:51]} 42. Kf1 {[%emt 0:00:01]} Qd3+ {[%emt 0:00:16]} 43. Ke1 {[%emt 0:00:29]} Qc3+ {[%emt 0:00:27]} 44. Kf1 {[%emt 0:00:12]} Qc1+ {[%emt 0:00:37]} 45. Ke2 {[%emt 0:00:09]} Qc2+ {[%emt 0:00:08]} 46. Ke1 {[%emt 0:00:21]} Qe4+ {[%emt 0:00:41]} 47. Kf2 {[%emt 0:00:32]} f5 {[%emt 0:00:23]} 48. Qc8+ {[%emt 0:02:13]} Bb7 {[%emt 0:00:08]} 49. Qd7 {[%emt 0:00:49]} Qd4+ {[%emt 0:00:34]} 50. Ke1 {[%emt 0:00:12]} Qc3+ {[%emt 0:00:23]} 51. Kf2 Qd2+ {[%emt 0:00:38]} 52. Kf1 {[%emt 0:00:18]} Qd3+ {[%emt 0:00:45]} 53. Ke1 {[%emt 0:01:05]} Qc3+ {[%emt 0:00:25]} 54. Kf2 {[%emt 0:00:07]} Qd4+ {[%emt 0:00:51]} 55. Ke1 {[%emt 0:00:05]} Qe3+ {[%emt 0:00:38]} 56. Kf1 {[%emt 0:00:04]} Qd3+ {[%emt 0:00:13]} 57. Ke1 {[%emt 0:00:34]} Qe3+ 1/2-1/2